[Event "3rd FIDE WCCC Blitz U12 2019"]
[Site "Minsk"]
[Date "2019.08.18"]
[Round "1.1"]
[White "Cherniaiev, Tykhon"]
[Black "Babarinov, Aldar"]
[Result "1-0"]
[ECO "B23"]
[WhiteElo "2112"]
[BlackElo "1499"]
[Annotator "ChessBase"]
[PlyCount "89"]
[EventDate "2019.08.18"]
[EventType "swiss"]
[EventCountry "BLR"]
[SourceTitle "playchess.com"]
[Source "ChessBase"]
[SourceQuality "1"]
[TimeControl "300+2"]

1. e4 {[%emt 0:00:00]} c5 {[%emt 0:00:00]} 2. Nc3 {[%emt 0:00:00]} e6 {[%emt 0:00:00]} 3. g3 {[%emt 0:00:02]} a6 {[%emt 0:00:00]} 4. Bg2 {[%emt 0:00:03]} Qc7 {[%emt 0:00:01]} 5. d3 {[%emt 0:00:06]} Nf6 {[%emt 0:00:24]} 6. Nh3 {[%emt 0:00:08]} Be7 {[%emt 0:00:08]} 7. O-O {[%emt 0:00:04]} O-O {[%emt 0:00:05]} 8. f4 {[%emt 0:00:03]} d6 {[%emt 0:00:08]} 9. g4 {[%emt 0:00:08]} Nc6 {[%emt 0:00:59]} 10. g5 {[%emt 0:00:14]} Nd7 {[%emt 0:00:06]} 11. f5 {[%emt 0:00:03]} Nce5 {[%emt 0:01:25]} 12. Nf4 {[%emt 0:00:45]} Nb6 {[%emt 0:00:44]} 13. f6 {[%emt 0:00:04]} gxf6 {[%emt 0:00:12]} 14. gxf6 {[%emt 0:00:01]} Bxf6 {[%emt 0:00:04]} 15. Nh5 Bh8 {[%emt 0:01:02]} 16. Bh6 {[%emt 0:00:14]} Nbd7 {[%emt 0:00:04]} 17. Bxf8 {[%emt 0:00:03]} Nxf8 {[%emt 0:00:01]} 18. Qd2 {[%emt 0:00:09]} Nfg6 {[%emt 0:00:06]} 19. Qg5 {[%emt 0:00:13]} Bd7 {[%emt 0:00:04]} 20. Ne2 {[%emt 0:00:21]} Qd8 {[%emt 0:00:01]} 21. Qg3 {[%emt 0:00:02]} Kf8 {[%emt 0:00:02]} 22. Nef4 {[%emt 0:00:05]} Qe7 {[%emt 0:00:03]} 23. Bh3 {[%emt 0:00:04]} Ke8 {[%emt 0:00:02]} 24. c3 {[%emt 0:00:07]} Kd8 {[%emt 0:00:03]} 25. Nxg6 {[%emt 0:00:22]} hxg6 {[%emt 0:00:01]} 26. Nf4 {[%emt 0:00:03]} Kc7 {[%emt 0:00:01]} 27. d4 {[%emt 0:00:04]} cxd4 {[%emt 0:00:01]} 28. cxd4 {[%emt 0:00:01]} Nc6 {[%emt 0:00:00]} 29. d5 {[%emt 0:00:03]} Ne5 {[%emt 0:00:02]} 30. dxe6 {[%emt 0:00:07]} Bxe6 {[%emt 0:00:01]} 31. Rac1+ {[%emt 0:00:10]} Kd7 {[%emt 0:00:03]} 32. Nd5 {[%emt 0:00:12]} Qd8 {[%emt 0:00:01]} 33. Rc7+ {[%emt 0:00:05]} Ke8 {[%emt 0:00:00]} 34. Bxe6 {[%emt 0:00:13]} fxe6 {[%emt 0:00:03]} 35. Re7+ {[%emt 0:00:02]} Qxe7 {[%emt 0:00:02]} 36. Nxe7 {[%emt 0:00:01]} Kxe7 {[%emt 0:00:01]} 37. Qh4+ {[%emt 0:00:07]} Kd7 {[%emt 0:00:02]} 38. Qh7+ {[%emt 0:00:02]} Kc6 {[%emt 0:00:01]} 39. Rc1+ {[%emt 0:00:01]} Kb6 {[%emt 0:00:00]} 40. Qc7+ {[%emt 0:00:07]} Ka7 {[%emt 0:00:01]} 41. Qxd6 {[%emt 0:00:03]} Nf3+ {[%emt 0:00:03]} 42. Kh1 {[%emt 0:00:01]} Nd4 {[%emt 0:00:04]} 43. Qc5+ {[%emt 0:00:04]} Kb8 {[%emt 0:00:01]} 44. Rf1 {[%emt 0:00:05]} Bg7 {[%emt 0:00:08]} 45. Rf7 {[%emt 0:00:02]} 1-0

[Event "3rd FIDE WCCC Blitz U12 2019"]
[Site "Minsk"]
[Date "2019.08.18"]
[Round "1.2"]
[White "Sirata, Aleh"]
[Black "Khubukshanov, Erdem"]
[Result "0-1"]
[ECO "D02"]
[WhiteElo "1434"]
[BlackElo "2257"]
[Annotator "ChessBase"]
[PlyCount "112"]
[EventDate "2019.08.18"]
[EventType "swiss"]
[EventCountry "BLR"]
[SourceTitle "playchess.com"]
[Source "ChessBase"]
[SourceQuality "1"]
[TimeControl "300+2"]

1. d4 d5 {[%emt 0:00:00]} 2. Bf4 {[%emt 0:00:04]} Nf6 {[%emt 0:00:00]} 3. Nf3 {[%emt 0:00:02]} c5 {[%emt 0:00:01]} 4. e3 {[%emt 0:00:08]} Nc6 {[%emt 0:00:02]} 5. c3 {[%emt 0:00:03]} e6 {[%emt 0:00:14]} 6. Bd3 {[%emt 0:00:02]} Be7 {[%emt 0:00:02]} 7. Nbd2 {[%emt 0:00:02]} Nh5 {[%emt 0:00:06]} 8. Bg3 {[%emt 0:00:04]} Nxg3 {[%emt 0:01:01]} 9. hxg3 {[%emt 0:00:03]} f5 {[%emt 0:00:05]} 10. Qe2 {[%emt 0:00:48]} c4 {[%emt 0:00:33]} 11. Bc2 {[%emt 0:00:04]} b5 {[%emt 0:00:18]} 12. a3 {[%emt 0:00:04]} Bd7 {[%emt 0:00:29]} 13. Ne5 {[%emt 0:00:07]} Nxe5 {[%emt 0:00:05]} 14. dxe5 {[%emt 0:00:01]} g6 {[%emt 0:00:18]} 15. f4 {[%emt 0:00:05]} a5 {[%emt 0:00:10]} 16. Nf3 {[%emt 0:00:19]} b4 {[%emt 0:00:01]} 17. Nd4 {[%emt 0:00:31]} O-O {[%emt 0:00:10]} 18. O-O {[%emt 0:00:12]} Rb8 {[%emt 0:00:18]} 19. axb4 {[%emt 0:00:22]} axb4 {[%emt 0:00:02]} 20. Ra6 {[%emt 0:00:03]} Qc8 {[%emt 0:00:21]} 21. Rfa1 {[%emt 0:00:09]} bxc3 22. bxc3 {[%emt 0:00:01]} Bc5 {[%emt 0:00:35]} 23. Qd1 {[%emt 0:00:38]} Re8 {[%emt 0:00:36]} 24. R6a2 {[%emt 0:00:14]} Qc7 {[%emt 0:00:14]} 25. Ba4 {[%emt 0:00:04]} Red8 {[%emt 0:00:04]} 26. Bxd7 {[%emt 0:00:16]} Qxd7 {[%emt 0:00:00]} 27. Ra6 {[%emt 0:00:09]} Rb6 {[%emt 0:00:03]} 28. Qa4 {[%emt 0:00:12]} Bxd4 {[%emt 0:00:04]} 29. exd4 {[%emt 0:00:05]} Rxa6 30. Qxa6 {[%emt 0:00:02]} Rb8 {[%emt 0:00:01]} 31. Qa7 {[%emt 0:00:34]} Qxa7 {[%emt 0:00:01]} 32. Rxa7 {[%emt 0:00:01]} Rb3 {[%emt 0:00:01]} 33. Re7 {[%emt 0:00:01]} Rxc3 34. Rxe6 {[%emt 0:00:02]} Rd3 {[%emt 0:00:02]} 35. Kf2 {[%emt 0:00:10]} Rxd4 {[%emt 0:00:03]} 36. Ke3 {[%emt 0:00:01]} Re4+ {[%emt 0:00:02]} 37. Kf3 {[%emt 0:00:04]} c3 {[%emt 0:00:01]} 38. Re8+ {[%emt 0:00:05]} Kf7 {[%emt 0:00:01]} 39. Rc8 {[%emt 0:00:01]} d4 {[%emt 0:00:07]} 40. g4 {[%emt 0:00:12]} Re3+ {[%emt 0:00:02]} 41. Kf2 {[%emt 0:00:02]} fxg4 {[%emt 0:00:01]} 42. Rc4 {[%emt 0:00:04]} Rd3 {[%emt 0:00:03]} 43. Rc7+ {[%emt 0:00:05]} Ke6 {[%emt 0:00:01]} 44. Rc6+ {[%emt 0:00:01]} Kd7 {[%emt 0:00:05]} 45. Rd6+ {[%emt 0:00:02]} Ke7 {[%emt 0:00:01]} 46. Rc6 {[%emt 0:00:03]} Rd2+ {[%emt 0:00:01]} 47. Ke1 {[%emt 0:00:02]} Rxg2 {[%emt 0:00:02]} 48. Rc7+ {[%emt 0:00:04]} Ke6 {[%emt 0:00:01]} 49. Rc6+ {[%emt 0:00:01]} Ke7 {[%emt 0:00:04]} 50. Rc7+ {[%emt 0:00:02]} Kd8 {[%emt 0:00:01]} 51. Rxh7 {[%emt 0:00:02]} c2 {[%emt 0:00:01]} 52. Rh8+ {[%emt 0:00:05]} Ke7 {[%emt 0:00:01]} 53. Rc8 {[%emt 0:00:02]} Rg1+ {[%emt 0:00:03]} 54. Kd2 {[%emt 0:00:01]} c1=Q+ {[%emt 0:00:03]} 55. Rxc1 {[%emt 0:00:02]} Rxc1 {[%emt 0:00:01]} 56. Kxc1 {[%emt 0:00:01]} g3 {[%emt 0:00:00]} 0-1

[Event "3rd FIDE WCCC Blitz U12 2019"]
[Site "Minsk"]
[Date "2019.08.18"]
[Round "1.3"]
[White "Strybuk, Artsiom I"]
[Black "Smolin, Alexander"]
[Result "1-0"]
[ECO "E63"]
[WhiteElo "2200"]
[BlackElo "1561"]
[Annotator "ChessBase"]
[PlyCount "125"]
[EventDate "2019.08.18"]
[EventType "swiss"]
[EventCountry "BLR"]
[SourceTitle "playchess.com"]
[Source "ChessBase"]
[SourceQuality "1"]
[TimeControl "300+2"]

1. d4 {[%emt 0:00:00]} Nf6 {[%emt 0:00:00]} 2. c4 {[%emt 0:00:02]} g6 {[%emt 0:00:00]} 3. Nf3 {[%emt 0:00:01]} Bg7 {[%emt 0:00:02]} 4. g3 {[%emt 0:00:00]} O-O {[%emt 0:00:03]} 5. Bg2 {[%emt 0:00:01]} d6 {[%emt 0:00:02]} 6. O-O {[%emt 0:00:03]} Nc6 {[%emt 0:00:08]} 7. Nc3 {[%emt 0:00:18]} a6 {[%emt 0:00:26]} 8. d5 {[%emt 0:00:03]} Na5 {[%emt 0:00:02]} 9. Nd2 {[%emt 0:00:01]} c5 {[%emt 0:00:15]} 10. Qc2 {[%emt 0:00:03]} Bd7 {[%emt 0:00:18]} 11. b3 {[%emt 0:00:02]} b5 {[%emt 0:00:07]} 12. Bb2 {[%emt 0:00:03]} Rb8 {[%emt 0:00:19]} 13. Rab1 {[%emt 0:00:26]} Qc7 {[%emt 0:00:37]} 14. Nd1 {[%emt 0:00:21]} Qc8 {[%emt 0:00:28]} 15. Ne3 {[%emt 0:00:18]} Bh3 {[%emt 0:00:22]} 16. Bc3 {[%emt 0:00:46]} b4 {[%emt 0:00:11]} 17. Bb2 {[%emt 0:00:24]} Bxg2 {[%emt 0:00:10]} 18. Nxg2 {[%emt 0:00:04]} e6 {[%emt 0:00:20]} 19. e4 {[%emt 0:00:29]} exd5 {[%emt 0:00:08]} 20. exd5 {[%emt 0:00:39]} Re8 {[%emt 0:00:12]} 21. Rbe1 {[%emt 0:00:16]} Qd7 {[%emt 0:00:13]} 22. Nf4 {[%emt 0:00:35]} Rxe1 23. Rxe1 Re8 {[%emt 0:00:07]} 24. Qd1 {[%emt 0:00:23]} Nxd5 {[%emt 0:00:31]} 25. Bxg7 {[%emt 0:00:22]} Nxf4 {[%emt 0:00:01]} 26. Ba1 {[%emt 0:00:05]} Nd3 {[%emt 0:00:11]} 27. Rf1 {[%emt 0:00:02]} Qf5 {[%emt 0:00:08]} 28. Nf3 {[%emt 0:00:04]} Ne5 29. Nxe5 {[%emt 0:00:01]} dxe5 {[%emt 0:00:17]} 30. Qd5 {[%emt 0:00:01]} Qc8 {[%emt 0:00:07]} 31. Bxe5 {[%emt 0:00:03]} Qc6 {[%emt 0:00:05]} 32. f4 {[%emt 0:00:04]} Qxd5 {[%emt 0:00:04]} 33. cxd5 {[%emt 0:00:00]} Nb7 {[%emt 0:00:02]} 34. d6 {[%emt 0:00:02]} Rd8 {[%emt 0:00:01]} 35. Rd1 {[%emt 0:00:01]} f6 {[%emt 0:00:02]} 36. Bxf6 {[%emt 0:00:04]} Rxd6 {[%emt 0:00:01]} 37. Rxd6 {[%emt 0:00:03]} Nxd6 38. Be7 Ne4 {[%emt 0:00:02]} 39. Kg2 {[%emt 0:00:03]} a5 {[%emt 0:00:05]} 40. Kf3 {[%emt 0:00:01]} Nc3 {[%emt 0:00:01]} 41. Bxc5 {[%emt 0:00:01]} Nxa2 {[%emt 0:00:01]} 42. Bb6 {[%emt 0:00:04]} a4 {[%emt 0:00:06]} 43. bxa4 {[%emt 0:00:03]} b3 {[%emt 0:00:01]} 44. Bd4 {[%emt 0:00:01]} Nb4 {[%emt 0:00:01]} 45. a5 {[%emt 0:00:02]} Kf7 {[%emt 0:00:02]} 46. Ke4 {[%emt 0:00:03]} Ke6 {[%emt 0:00:01]} 47. Bc3 {[%emt 0:00:02]} Nc6 {[%emt 0:00:04]} 48. Kd3 {[%emt 0:00:02]} Kd5 {[%emt 0:00:03]} 49. Be1 {[%emt 0:00:02]} b2 50. Kc2 Kc5 {[%emt 0:00:07]} 51. Kxb2 {[%emt 0:00:02]} Kb5 {[%emt 0:00:01]} 52. Kc2 {[%emt 0:00:02]} Nd4+ {[%emt 0:00:04]} 53. Kd3 {[%emt 0:00:02]} Nf3 {[%emt 0:00:01]} 54. Bc3 {[%emt 0:00:04]} Nxh2 {[%emt 0:00:01]} 55. Ke4 {[%emt 0:00:02]} Ng4 {[%emt 0:00:02]} 56. Kd5 {[%emt 0:00:02]} Ne3+ {[%emt 0:00:02]} 57. Ke6 {[%emt 0:00:01]} h5 {[%emt 0:00:03]} 58. Kf7 {[%emt 0:00:02]} Nd5 {[%emt 0:00:03]} 59. Bd2 {[%emt 0:00:02]} h4 {[%emt 0:00:03]} 60. gxh4 {[%emt 0:00:01]} Nc7 {[%emt 0:00:01]} 61. Kxg6 {[%emt 0:00:01]} Ne8 {[%emt 0:00:01]} 62. h5 {[%emt 0:00:01]} Kc4 {[%emt 0:00:02]} 63. a6 {[%emt 0:00:01]} 1-0

[Event "3rd FIDE WCCC Blitz U12 2019"]
[Site "Minsk"]
[Date "2019.08.18"]
[Round "1.4"]
[White "Gizunov, Stepan"]
[Black "Israfilov, Ali"]
[Result "0-1"]
[ECO "B43"]
[WhiteElo "1349"]
[BlackElo "1857"]
[Annotator "NA"]
[PlyCount "114"]
[EventDate "2019.08.18"]
[EventType "swiss"]
[EventCountry "BLR"]
[SourceTitle "playchess.com"]
[Source "ChessBase"]
[SourceQuality "1"]
[TimeControl "300+2"]

1. e4 {[%emt 0:00:00]} c5 {[%emt 0:00:00]} 2. Nf3 {[%emt 0:00:00]} e6 {[%emt 0:00:01]} 3. d4 {[%emt 0:00:01]} cxd4 {[%emt 0:00:01]} 4. Nxd4 {[%emt 0:00:01]} a6 {[%emt 0:00:00]} 5. Nc3 {[%emt 0:00:01]} Qc7 {[%emt 0:00:01]} 6. Be2 {[%emt 0:00:01]} b5 {[%emt 0:00:02]} 7. a3 {[%emt 0:00:01]} Bb7 {[%emt 0:00:01]} 8. O-O {[%emt 0:00:04]} Nf6 {[%emt 0:00:01]} 9. f3 {[%emt 0:00:03]} d6 {[%emt 0:00:01]} 10. Be3 {[%emt 0:00:04]} Nbd7 {[%emt 0:00:02]} 11. Qd2 {[%emt 0:00:06]} Be7 {[%emt 0:00:02]} 12. Rad1 {[%emt 0:00:05]} O-O {[%emt 0:00:02]} 13. Rfe1 {[%emt 0:00:06]} Rac8 {[%emt 0:00:00]} 14. Bd3 {[%emt 0:00:08]} Ne5 {[%emt 0:00:12]} 15. f4 {[%emt 0:00:13]} Nc4 {[%emt 0:00:02]} 16. Qe2 {[%emt 0:00:21]} Nxb2 {[%emt 0:00:05]} 17. Bd2 {[%emt 0:00:25]} Nxd1 {[%emt 0:00:06]} 18. Rxd1 {[%emt 0:00:03]} Qc5 {[%emt 0:00:15]} 19. Qf2 {[%emt 0:01:40]} Ng4 {[%emt 0:00:01]} 20. Qg3 {[%emt 0:00:04]} Qxd4+ {[%emt 0:00:01]} 21. Kf1 {[%emt 0:00:03]} Nf6 {[%emt 0:00:05]} 22. e5 {[%emt 0:00:09]} dxe5 {[%emt 0:00:04]} 23. fxe5 {[%emt 0:00:02]} Nd5 {[%emt 0:00:34]} 24. Bh6 {[%emt 0:00:18]} Ne3+ {[%emt 0:00:31]} 25. Bxe3 {[%emt 0:00:43]} Qxc3 {[%emt 0:00:02]} 26. Bh6 {[%emt 0:00:04]} g6 {[%emt 0:00:01]} 27. Bxf8 {[%emt 0:00:10]} Bxf8 {[%emt 0:00:01]} 28. h4 {[%emt 0:00:09]} Bg7 {[%emt 0:00:02]} 29. Re1 {[%emt 0:00:10]} Qxa3 {[%emt 0:00:09]} 30. h5 {[%emt 0:00:01]} Rxc2 {[%emt 0:00:09]} 31. hxg6 hxg6 {[%emt 0:00:03]} 32. Qe3 {[%emt 0:00:37]} Rc3 {[%emt 0:00:11]} 33. Rd1 {[%emt 0:00:06]} Qc5 {[%emt 0:00:07]} 34. Qxc5 {[%emt 0:00:04]} Rxc5 {[%emt 0:00:01]} 35. Be2 {[%emt 0:00:01]} Bxe5 {[%emt 0:00:04]} 36. Rd8+ {[%emt 0:00:02]} Kg7 {[%emt 0:00:01]} 37. Rd7 {[%emt 0:00:01]} Bd5 {[%emt 0:00:03]} 38. Ra7 {[%emt 0:00:01]} Rc1+ {[%emt 0:00:06]} 39. Bd1 {[%emt 0:00:04]} Rxd1+ 40. Ke2 Ra1 {[%emt 0:00:03]} 41. g4 {[%emt 0:00:01]} Bc4+ {[%emt 0:00:02]} 42. Ke3 {[%emt 0:00:01]} b4 {[%emt 0:00:01]} 43. Ke4 {[%emt 0:00:01]} Bf6 {[%emt 0:00:00]} 44. Ke3 {[%emt 0:00:03]} b3 {[%emt 0:00:01]} 45. Rb7 {[%emt 0:00:01]} b2 {[%emt 0:00:02]} 46. Kd2 {[%emt 0:00:02]} b1=Q {[%emt 0:00:03]} 47. Rxb1 {[%emt 0:00:05]} Rxb1 {[%emt 0:00:01]} 48. Ke3 {[%emt 0:00:00]} a5 {[%emt 0:00:02]} 49. Kd2 {[%emt 0:00:02]} a4 {[%emt 0:00:00]} 50. Kc2 {[%emt 0:00:02]} Rb6 {[%emt 0:00:02]} 51. Kc1 {[%emt 0:00:02]} a3 {[%emt 0:00:04]} 52. Kc2 {[%emt 0:00:01]} a2 {[%emt 0:00:01]} 53. Kd2 {[%emt 0:00:02]} a1=Q {[%emt 0:00:01]} 54. Ke3 {[%emt 0:00:01]} Qd4+ 55. Kf3 Rb3+ {[%emt 0:00:03]} 56. Kg2 {[%emt 0:00:02]} Qd2+ {[%emt 0:00:01]} 57. Kg1 {[%emt 0:00:01]} Rb1# {[%emt 0:00:01]} 0-1

[Event "3rd FIDE WCCC Blitz U12 2019"]
[Site "Minsk"]
[Date "2019.08.18"]
[Round "1.5"]
[White "Saveljev, Ivan"]
[Black "Parkhimchyk, Kiryl"]
[Result "1-0"]
[ECO "C02"]
[WhiteElo "2040"]
[BlackElo "1424"]
[Annotator "NA"]
[PlyCount "91"]
[EventDate "2019.08.18"]
[EventType "swiss"]
[EventCountry "BLR"]
[SourceTitle "playchess.com"]
[Source "ChessBase"]
[SourceQuality "1"]
[TimeControl "300+2"]

1. e4 {[%emt 0:00:00]} e6 {[%emt 0:00:00]} 2. d4 {[%emt 0:00:00]} d5 {[%emt 0:00:00]} 3. e5 {[%emt 0:00:00]} c5 {[%emt 0:00:00]} 4. c3 {[%emt 0:00:01]} Nc6 {[%emt 0:00:01]} 5. Nf3 {[%emt 0:00:01]} Qb6 6. a3 a5 {[%emt 0:00:11]} 7. Bd3 {[%emt 0:00:04]} Bd7 {[%emt 0:00:05]} 8. Bc2 {[%emt 0:00:02]} c4 {[%emt 0:00:07]} 9. O-O {[%emt 0:00:13]} Nge7 {[%emt 0:00:03]} 10. Nbd2 {[%emt 0:00:05]} Ng6 {[%emt 0:00:02]} 11. b3 {[%emt 0:00:29]} cxb3 {[%emt 0:00:16]} 12. Nxb3 {[%emt 0:00:23]} Be7 {[%emt 0:00:30]} 13. Be3 {[%emt 0:00:03]} Qc7 {[%emt 0:00:37]} 14. Qd3 {[%emt 0:00:30]} a4 {[%emt 0:00:12]} 15. Nbd2 {[%emt 0:00:14]} Na5 {[%emt 0:00:08]} 16. Rfc1 {[%emt 0:01:03]} b5 {[%emt 0:00:05]} 17. Qe2 {[%emt 0:00:04]} Nc4 {[%emt 0:00:05]} 18. Nxc4 {[%emt 0:00:02]} bxc4 {[%emt 0:00:14]} 19. Ne1 {[%emt 0:00:09]} O-O {[%emt 0:00:08]} 20. Bd1 {[%emt 0:00:20]} Rfb8 {[%emt 0:00:19]} 21. Nc2 {[%emt 0:00:14]} Rb2 {[%emt 0:00:27]} 22. Qe1 {[%emt 0:00:03]} Qb7 {[%emt 0:00:26]} 23. Nb4 {[%emt 0:00:01]} Bxb4 {[%emt 0:00:30]} 24. cxb4 {[%emt 0:00:05]} Rc8 {[%emt 0:00:20]} 25. Qc3 {[%emt 0:00:08]} Rb3 {[%emt 0:00:07]} 26. Bxb3 {[%emt 0:00:03]} cxb3 {[%emt 0:00:10]} 27. Qb2 {[%emt 0:00:04]} Rc4 {[%emt 0:00:17]} 28. Rc3 {[%emt 0:00:12]} Bb5 {[%emt 0:00:06]} 29. Rac1 {[%emt 0:00:01]} Rxc3 {[%emt 0:00:03]} 30. Rxc3 {[%emt 0:00:07]} Bc4 {[%emt 0:00:01]} 31. Bc1 {[%emt 0:00:07]} Ne7 {[%emt 0:00:13]} 32. Qd2 {[%emt 0:00:01]} Nf5 {[%emt 0:00:03]} 33. Bb2 {[%emt 0:00:04]} Qb6 {[%emt 0:00:03]} 34. h3 {[%emt 0:00:25]} Kf8 {[%emt 0:00:02]} 35. g4 {[%emt 0:00:08]} Nxd4 {[%emt 0:00:04]} 36. Kg2 {[%emt 0:00:15]} Nc6 {[%emt 0:00:03]} 37. Rf3 {[%emt 0:00:04]} Qb7 {[%emt 0:00:07]} 38. Qf4 {[%emt 0:00:07]} Ke8 {[%emt 0:00:02]} 39. h4 {[%emt 0:00:07]} Ne7 {[%emt 0:00:01]} 40. Qxf7+ {[%emt 0:00:02]} Kd8 {[%emt 0:00:01]} 41. Qxe6 {[%emt 0:00:05]} d4 {[%emt 0:00:05]} 42. Qxc4 {[%emt 0:00:05]} Ng6 {[%emt 0:00:04]} 43. Qxd4+ {[%emt 0:00:02]} Ke7 {[%emt 0:00:00]} 44. Qd6+ {[%emt 0:00:02]} Ke8 {[%emt 0:00:02]} 45. Kg3 {[%emt 0:00:06]} Nxh4 {[%emt 0:00:03]} 46. Rf8# {[%emt 0:00:03]} 1-0

[Event "3rd FIDE WCCC Blitz U12 2019"]
[Site "Minsk"]
[Date "2019.08.18"]
[Round "1.6"]
[White "Kotelnikov, Konstantin"]
[Black "Shakhaylo, Dmitriy"]
[Result "1/2-1/2"]
[ECO "B39"]
[WhiteElo "1629"]
[BlackElo "1718"]
[Annotator "NA"]
[PlyCount "145"]
[EventDate "2019.08.18"]
[EventType "swiss"]
[EventCountry "BLR"]
[SourceTitle "playchess.com"]
[Source "ChessBase"]
[SourceQuality "1"]
[TimeControl "300+2"]

1. e4 {[%emt 0:00:00]} c5 {[%emt 0:00:00]} 2. Nf3 {[%emt 0:00:00]} Nc6 {[%emt 0:00:01]} 3. d4 {[%emt 0:00:01]} cxd4 4. Nxd4 {[%emt 0:00:01]} g6 {[%emt 0:00:04]} 5. c4 {[%emt 0:00:01]} Bg7 {[%emt 0:00:01]} 6. Be3 {[%emt 0:00:01]} Nf6 {[%emt 0:00:02]} 7. Nc3 {[%emt 0:00:00]} Ng4 {[%emt 0:00:04]} 8. Qxg4 {[%emt 0:00:05]} Nxd4 {[%emt 0:00:02]} 9. Qd1 {[%emt 0:00:04]} Ne6 {[%emt 0:00:03]} 10. Bd3 {[%emt 0:00:10]} O-O {[%emt 0:00:06]} 11. O-O {[%emt 0:00:02]} d6 {[%emt 0:00:03]} 12. Qd2 {[%emt 0:00:29]} Nc7 {[%emt 0:00:06]} 13. Nd5 {[%emt 0:00:35]} Nxd5 {[%emt 0:00:04]} 14. exd5 {[%emt 0:00:13]} b6 {[%emt 0:00:11]} 15. Bh6 {[%emt 0:00:15]} Ba6 {[%emt 0:00:09]} 16. Bxg7 {[%emt 0:00:04]} Kxg7 {[%emt 0:00:02]} 17. b3 {[%emt 0:00:04]} f5 {[%emt 0:00:10]} 18. f4 {[%emt 0:00:05]} Qd7 {[%emt 0:00:06]} 19. Rfe1 {[%emt 0:00:05]} Rae8 {[%emt 0:00:06]} 20. Re6 {[%emt 0:00:28]} Rf6 {[%emt 0:00:03]} 21. Rae1 {[%emt 0:00:02]} Kf7 {[%emt 0:00:08]} 22. Qe3 {[%emt 0:00:08]} Kf8 {[%emt 0:00:21]} 23. Kh1 {[%emt 0:00:19]} Rxe6 {[%emt 0:00:06]} 24. Qxe6 {[%emt 0:00:36]} Qxe6 {[%emt 0:00:02]} 25. Rxe6 {[%emt 0:00:02]} Bc8 {[%emt 0:00:02]} 26. Re2 {[%emt 0:00:11]} Kf7 {[%emt 0:00:02]} 27. Kg1 {[%emt 0:00:04]} e6 {[%emt 0:00:05]} 28. dxe6+ {[%emt 0:00:04]} Rxe6 {[%emt 0:00:02]} 29. Kf2 {[%emt 0:00:18]} Bb7 {[%emt 0:00:07]} 30. g3 {[%emt 0:00:22]} d5 {[%emt 0:00:10]} 31. Rxe6 {[%emt 0:00:08]} Kxe6 {[%emt 0:00:02]} 32. Ke3 {[%emt 0:00:01]} Kd6 {[%emt 0:00:04]} 33. Kd4 {[%emt 0:00:01]} Bc6 {[%emt 0:00:09]} 34. Be2 {[%emt 0:00:21]} h6 {[%emt 0:00:03]} 35. h4 {[%emt 0:00:10]} Bb7 {[%emt 0:00:06]} 36. Bf3 {[%emt 0:00:04]} Ba8 {[%emt 0:00:33]} 37. Bxd5 {[%emt 0:00:03]} Bxd5 {[%emt 0:00:09]} 38. cxd5 {[%emt 0:00:00]} b5 {[%emt 0:00:04]} 39. b4 {[%emt 0:00:02]} a6 {[%emt 0:00:02]} 40. a3 h5 {[%emt 0:00:04]} 41. Ke3 {[%emt 0:00:10]} Kxd5 {[%emt 0:00:03]} 42. Kd3 {[%emt 0:00:00]} Kc6 {[%emt 0:00:04]} 43. Kc3 {[%emt 0:00:06]} Kc7 {[%emt 0:00:12]} 44. Kd3 {[%emt 0:00:04]} Kd7 {[%emt 0:00:10]} 45. Kc3 {[%emt 0:00:11]} Kc6 {[%emt 0:00:03]} 46. Kd4 {[%emt 0:00:03]} Kd6 {[%emt 0:00:01]} 47. Kc3 {[%emt 0:00:02]} Ke6 {[%emt 0:00:05]} 48. Kd2 {[%emt 0:00:04]} Kd6 {[%emt 0:00:04]} 49. Kc3 {[%emt 0:00:01]} Kd5 {[%emt 0:00:08]} 50. Kd3 {[%emt 0:00:02]} Kc6 {[%emt 0:00:01]} 51. Kc3 {[%emt 0:00:00]} Kc7 {[%emt 0:00:03]} 52. Kd3 {[%emt 0:00:04]} Kc6 {[%emt 0:00:22]} 53. Kc3 {[%emt 0:00:01]} Kc7 {[%emt 0:00:05]} 54. Kd3 {[%emt 0:00:01]} Kc6 {[%emt 0:00:15]} 55. Kc3 {[%emt 0:00:02]} Kd7 {[%emt 0:00:33]} 56. Kd3 {[%emt 0:00:03]} Ke7 {[%emt 0:00:04]} 57. Kc3 {[%emt 0:00:08]} Ke6 {[%emt 0:00:05]} 58. Kd4 {[%emt 0:00:01]} Kd6 {[%emt 0:00:02]} 59. Kc3 {[%emt 0:00:01]} Kc7 {[%emt 0:00:06]} 60. Kd4 {[%emt 0:00:01]} Kd6 {[%emt 0:00:01]} 61. Kc3 {[%emt 0:00:01]} Kd5 {[%emt 0:00:02]} 62. Kd3 {[%emt 0:00:01]} Kc6 {[%emt 0:00:09]} 63. Kc3 {[%emt 0:00:02]} Kd5 {[%emt 0:00:06]} 64. Kd3 {[%emt 0:00:01]} Ke6 {[%emt 0:00:03]} 65. Ke3 {[%emt 0:00:01]} Kd7 {[%emt 0:00:03]} 66. Kd3 {[%emt 0:00:03]} Kc7 {[%emt 0:00:05]} 67. Kc3 {[%emt 0:00:01]} Kc6 {[%emt 0:00:02]} 68. Kd4 {[%emt 0:00:04]} Kd6 {[%emt 0:00:22]} 69. Kc3 {[%emt 0:00:00]} Kd5 {[%emt 0:00:06]} 70. Kd3 {[%emt 0:00:01]} Kc6 {[%emt 0:00:00]} 71. Kc3 {[%emt 0:00:01]} Kc7 {[%emt 0:00:02]} 72. Kd4 {[%emt 0:00:04]} Kd6 {[%emt 0:00:01]} 73. Kc3 {[%emt 0:00:00] Ke5} 1/2-1/2